bitfinex-derivatives/quotes_SOLF0:USTF0_20250829
["timestamp","ask_amount","ask_price","bid_price","bid_amount"]
[1756478782132,7.5,209.59,209.41,18.66280174]
[1756478782333,125.75338293,209.63,209.41,18.66280174]
[1756478782736,7.5,209.62,209.42,133.28]
[1756478783137,7.5,209.62,209.41,18.66280174]
[1756478783138,7.5,209.6,209.38,321.06]
[1756478783438,7.5,209.6,209.39,133.22]
[1756478783932,125.75338293,209.63,209.45,18.66280174]
[1756478784436,7.5,209.62,209.45,18.66280174]
[1756478784837,7.5,209.62,209.45,128.94]
[1756478785038,7.5,209.62,209.44,133.04]
[1756478785236,7.5,209.62,209.4,18.66280174]
[1756478785433,7.5,209.62,209.41,132.98]
[1756478785732,7.5,209.62,209.4,18.66280174]
[1756478785937,18.66280174,209.6,209.38,321.06]
[1756478786138,7.5,209.59,209.38,321.06]
[1756478786332,7.5,209.59,209.39,132.92]
[1756478786728,18.66280174,209.6,209.38,321.06]
[1756478786938,7.5,209.59,209.38,321.06]
[1756478787136,32.96280174,209.6,209.38,321.06]
[1756478787336,7.5,209.59,209.38,321.06]
[1756478787532,7.5,209.57,209.38,321.06]
[1756478789537,132.72,209.59,209.38,321.06]
[1756478789738,18.66280174,209.55,209.36,180.70377038]
[1756478789940,7.5,209.54,209.36,180.70377038]
[1756478790131,13.9,209.53,209.36,180.70377038]
[1756478790341,7.5,209.52,209.31,132.56]
[1756478790942,13.9,209.53,209.31,132.56]
[1756478791131,7.5,209.52,209.31,132.56]
[1756478791330,7.5,209.48,209.26,320.86]
[1756478791531,18.66280174,209.45,209.26,453.36]
[1756478791737,7.5,209.43,209.26,320.86]
[1756478794536,32.96280174,209.47,209.17,18.66280174]
[1756478794738,7.5,209.45,209.18,132.7]
[1756478794940,14.3,209.46,209.18,132.7]
[1756478795135,18.66280174,209.34,208.99,5.28768124]
[1756478795442,7.5,209.27,209.04,18.66280174]
[1756478795638,16.58,209.26,209.04,19.44280174]
[1756478795941,22.76,209.27,209.04,19.44280174]
[1756478796541,26.39280174,209.33,209.09,18.66280174]
[1756478796737,7.73,209.33,209.09,18.66280174]
[1756478797238,7.73,209.38,209.14,18.66280174]
[1756478797439,7.73,209.48,209.24,18.66280174]
[1756478797637,7.73,209.48,209.25,133.74]
[1756478798136,7.73,209.49,209.25,133.74]
[1756478798338,7.73,209.47,209.24,96.96]
[1756478798543,7.73,209.41,209.19,73.56]
[1756478798841,134.08,209.4,209.2,18.66280174]
[1756478799238,7.73,209.39,209.2,18.66280174]
[1756478801143,18.66280174,209.6,209.33,18.66280174]
[1756478801334,10.28,209.59,209.34,58.72]
[1756478801534,7.73,209.58,209.33,18.66280174]
[1756478801735,14.3,209.53,209.28,18.66280174]
[1756478801943,7.73,209.52,209.3,11.94]
[1756478802140,7.73,209.52,209.33,18.66280174]
[1756478802346,7.73,209.62,209.38,18.66280174]
[1756478802547,7.73,209.62,209.39,134.48]
[1756478802938,7.73,209.62,209.43,18.66280174]
[1756478803638,7.73,209.62,209.39,134.48]
[1756478803845,7.73,209.62,209.42,18.66280174]
[1756478804545,7.73,209.62,209.41,98.54]
[1756478804745,7.73,209.62,209.4,12.0]
[1756478804947,7.73,209.62,209.39,18.66280174]
[1756478805144,98.5,209.64,209.4,19.7]
[1756478805443,7.73,209.62,209.4,19.7]
[1756478805645,98.5,209.64,209.4,19.7]
[1756478805838,7.73,209.62,209.4,19.7]
[1756478806039,98.5,209.64,209.39,18.66280174]
[1756478806441,18.66280174,209.59,209.34,18.66280174]
[1756478806742,18.66280174,209.59,209.35,11.96]
[1756478807337,7.73,209.58,209.35,11.96]
[1756478807537,7.73,209.58,209.3,19.6]
[1756478808144,14.3,209.55,209.3,19.6]
[1756478808341,7.73,209.53,209.3,19.6]
[1756478809938,7.73,209.6,209.39,18.66280174]
[1756478810144,7.73,209.6,209.4,134.22]
[1756478810546,7.73,209.6,209.44,18.66280174]
[1756478812245,14.32,209.71,209.44,18.66280174]
[1756478812446,125.75338293,209.63,209.49,18.66280174]
[1756478812751,7.73,209.69,209.5,64.38]
[1756478815052,7.73,209.69,209.49,18.66280174]
[1756478815247,7.73,209.69,209.49,133.36280174]
[1756478815753,7.73,209.69,209.51,3.86877226]
[1756478815945,7.73,209.69,209.5,53.08877226]
[1756478816347,0.83032103,209.71,209.57,3.86877226]
[1756478816554,0.83032103,209.71,209.54,23.95048298]
[1756478816555,0.83032103,209.71,209.6,18.66280174]
[1756478816754,7.73,209.77,209.6,48.76280174]
[1756478817051,7.73,209.77,209.6,52.631574]
[1756478817245,8.5599151,209.82,209.6,52.631574]
[1756478817449,8.5599151,209.82,209.61,22.531574]
[1756478817745,7.73,209.81,209.61,22.531574]
[1756478817945,7.73,209.81,209.6,33.96877226]
[1756478818147,7.73,209.81,209.6,30.1]
[1756478818549,7.73,209.81,209.6,33.96877226]
[1756478818745,7.73,209.81,209.6,30.1]
[1756478818949,7.73,209.81,209.61,3.86877226]
[1756478819152,7.73,209.81,209.6,30.1]
[1756478819859,7.73,209.81,209.62,18.66280174]
[1756478821456,7.73,209.83,209.58,133.76]
[1756478821954,18.66280174,209.84,209.58,133.76]
[1756478822449,7.73,209.82,209.58,133.76]
[1756478822656,18.66280174,209.79,209.58,133.62]
[1756478822854,18.66280174,209.79,209.57,320.68]
[1756478823157,7.73,209.73,209.57,320.68]
[1756478823350,133.63,209.73,209.53,133.46]
[1756478823752,7.73,209.81,209.59,18.66280174]
[1756478824447,105.32,209.82,209.59,18.66280174]
[1756478824654,86.65,209.81,209.59,56.22280174]
[1756478824853,55.28,209.8,209.59,18.66280174]
[1756478825052,55.28,209.8,209.59,59.22280174]
[1756478825454,18.66280174,209.78,209.54,3.94644347]
[1756478825652,7.73,209.77,209.55,40.76]
[1756478826751,7.15,209.77,209.52,3.94644347]
[1756478826950,18.66280174,209.73,209.47,18.92]
[1756478827157,7.15,209.72,209.47,18.92]
[1756478827357,7.15,209.71,209.47,18.92]
[1756478827560,7.15,209.69,209.47,18.92]
[1756478828660,140.17,209.69,209.47,18.92]
[1756478828957,7.15,209.69,209.47,22.86644347]
[1756478829850,7.15,209.69,209.47,3.94644347]
[1756478830051,140.01,209.69,209.48,132.82]
[1756478830250,7.15,209.81,209.48,132.82]
[1756478830457,7.15,209.81,209.56,18.66280174]
[1756478830648,7.15,209.83,209.53,3.94644347]
[1756478830850,7.15,209.78,209.54,11.8]
[1756478831360,7.15,209.78,209.58,18.66280174]
[1756478832857,7.15,209.83,209.58,18.66280174]
[1756478833068,7.15,209.83,209.63,18.66280174]
[1756478833262,7.15,209.83,209.64,133.32]
[1756478834465,7.15,209.83,209.65,133.2]
[1756478835461,7.15,209.83,209.63,18.66280174]
[1756478835665,7.15,209.83,209.64,133.22]
[1756478836062,7.15,209.83,209.6,133.18]
[1756478836369,7.15,209.82,209.6,133.18]
[1756478837063,14.32,209.83,209.6,133.18]
[1756478837264,18.66280174,209.84,209.6,133.18]
[1756478837265,7.15,209.82,209.6,133.18]
[1756478837460,18.66280174,209.79,209.57,320.56]
[1756478837666,7.15,209.73,209.48,18.66280174]
[1756478837867,7.15,209.71,209.48,18.66280174]
[1756478838067,7.15,209.71,209.48,151.68280174]
[1756478838460,116.12,209.72,209.48,18.66280174]
[1756478838668,7.15,209.67,209.45,453.46]
[1756478838868,7.15,209.67,209.45,320.48]
[1756478839568,7.15,209.62,209.45,320.48]
[1756478839770,105.31,209.62,209.45,320.48]
[1756478840172,7.15,209.72,209.45,320.48]
[1756478840370,7.15,209.72,209.5,18.66280174]
[1756478840568,7.15,209.72,209.51,133.34]
[1756478840966,7.15,209.72,209.52,134.88]
[1756478841368,18.66280174,209.84,209.57,18.66280174]
[1756478841571,7.15,209.83,209.66,18.66280174]
[1756478841770,7.15,209.85,209.63,18.66280174]
[1756478841971,94.74,209.86,209.63,18.66280174]
[1756478842171,7.15,209.85,209.63,18.66280174]
[1756478842475,14.32,209.86,209.63,18.66280174]
[1756478842680,91.84,209.85,209.63,18.66280174]
[1756478843476,7.15,209.84,209.63,18.66280174]
[1756478843676,18.66280174,209.83,209.62,16.86]
[1756478843875,14.32,209.82,209.55,18.66280174]
[1756478844177,18.66280174,209.83,209.55,18.66280174]
[1756478844178,14.32,209.81,209.55,18.66280174]
[1756478844371,14.32,209.79,209.55,18.66280174]
[1756478844570,7.15,209.77,209.55,18.66280174]
[1756478844776,7.15,209.7,209.45,343.08924521]
[1756478844973,142.15,209.7,209.46,138.90644347]
[1756478845374,142.15,209.7,209.47,3.94644347]
[1756478845567,142.15,209.7,209.46,138.90644347]
[1756478845770,142.15,209.7,209.47,3.94644347]
[1756478845968,18.66280174,209.8,209.55,18.66280174]
[1756478846168,18.66280174,209.8,209.45,320.48]
[1756478846169,31.00280174,209.8,209.56,18.46]
[1756478846369,7.15,209.79,209.56,18.46]
[1756478846573,7.15,209.79,209.6,18.66280174]
[1756478846772,7.15,209.84,209.62,3.94644347]
[1756478846974,7.15,209.84,209.65,22.60924521]
[1756478847175,7.15,209.84,209.66,32.08]
[1756478847577,7.15,209.84,209.66,36.02644347]
[1756478847773,7.15,209.84,209.66,32.08]
[1756478848679,40.38,209.86,209.66,32.08]
[1756478848981,327.67,209.91,209.66,32.08]
[1756478848982,327.67,209.91,209.7,18.66280174]
[1756478849183,327.67,209.91,209.68,18.66280174]
[1756478849480,21.47,209.9,209.65,3.94644347]
[1756478849679,21.47,209.9,209.62,5.28768124]
[1756478849680,7.15,209.86,209.61,3.94644347]
[1756478849981,7.15,209.83,209.59,155.56280174]
[1756478850176,14.32,209.84,209.54,5.28768124]
[1756478850177,32.98280174,209.82,209.57,3.94644347]
[1756478850376,7.15,209.76,209.54,3.94644347]
[1756478850580,7.15,209.74,209.49,131.74280174]
[1756478850776,126.64,209.75,209.49,155.60280174]
[1756478850980,7.15,209.74,209.49,159.57024194]
[1756478851384,17.06,209.73,209.52,3.9674402]
[1756478851778,7.15,209.74,209.5,5.28768124]
[1756478851779,7.15,209.74,209.54,18.66280174]
[1756478851979,7.15,209.74,209.55,3.9674402]
[1756478852176,7.15,209.74,209.54,22.63024194]
[1756478852382,7.15,209.74,209.55,3.9674402]
[1756478852584,7.15,209.74,209.56,3.9674402]
[1756478852778,7.15,209.74,209.57,114.04]
[1756478853184,7.15,209.74,209.57,118.0074402]
[1756478853484,7.15,209.81,209.59,18.66280174]
[1756478853680,7.15,209.81,209.6,3.9674402]
[1756478853978,7.15,209.81,209.65,3.9674402]
[1756478854177,124.71111551,209.82,209.68,3.9674402]
[1756478854778,124.71111551,209.82,209.66,140.5874402]
[1756478854977,124.71111551,209.82,209.66,3.9674402]
[1756478855178,124.71111551,209.82,209.67,3.9674402]
[1756478855379,124.71111551,209.82,209.65,3.9674402]
[1756478855574,124.71111551,209.82,209.66,3.9674402]
[1756478855978,124.71111551,209.82,209.65,140.4074402]
[1756478856281,124.71111551,209.82,209.68,3.9674402]
[1756478856584,124.71111551,209.82,209.69,3.9674402]
[1756478856780,7.67,209.89,209.71,3.9674402]
[1756478856980,7.67,209.95,209.75,3.9674402]
[1756478857174,7.67,209.95,209.76,3.9674402]
[1756478857374,7.67,209.95,209.77,3.9674402]
[1756478857782,7.67,209.95,209.78,3.9674402]
[1756478857977,7.67,209.95,209.81,3.9674402]
[1756478858173,7.67,209.95,209.79,3.9674402]
[1756478858383,7.67,209.92,209.71,9.25512144]
[1756478858582,18.66280174,209.93,209.7,3.9674402]
[1756478858583,7.67,209.9,209.7,3.9674402]
[1756478858979,7.67,209.9,209.72,3.9674402]
[1756478859386,7.67,209.9,209.71,22.63024194]
[1756478859591,7.67,209.9,209.69,3.9674402]
[1756478860085,7.67,209.87,209.69,3.9674402]
[1756478860286,7.67,209.87,209.68,3.9674402]
[1756478860488,7.67,209.87,209.66,3.9674402]
[1756478860790,7.67,209.97,209.72,3.9674402]
[1756478860990,7.67,209.97,209.75,3.9674402]
[1756478861194,7.67,209.97,209.8,3.9674402]
[1756478861592,7.67,209.97,209.81,3.9674402]
[1756478861792,7.67,209.97,209.8,3.9674402]
[1756478861993,7.67,209.97,209.79,3.9674402]
[1756478862192,7.67,209.97,209.81,18.66280174]
[1756478862388,137.12,210.05,209.82,3.9674402]
[1756478862589,7.67,210.04,209.86,22.63024194]
[1756478862893,7.67,210.04,209.88,3.9674402]
[1756478863287,7.67,210.04,209.89,3.9674402]
[1756478863487,7.67,210.04,209.88,3.9674402]
[1756478863684,7.67,210.04,209.86,3.9674402]
[1756478863889,7.67,210.04,209.85,7.38]
[1756478864093,7.67,210.04,209.88,18.66280174]
[1756478864291,14.32,210.2,209.88,18.66280174]
[1756478864292,7.28,210.11,209.88,18.66280174]
[1756478864492,14.95,210.11,209.93,18.66280174]
[1756478865183,7.67,210.11,209.93,18.66280174]
[1756478866086,0.82875889,210.13,209.93,18.66280174]
[1756478866385,7.67,210.14,209.99,18.66280174]
[1756478868790,8.49836434,210.21,209.99,18.66280174]
[1756478869291,0.82836434,210.21,209.99,18.66280174]
[1756478869491,7.67,210.2,209.99,18.66280174]
[1756478869690,18.66280174,210.19,209.91,18.66280174]
[1756478869897,7.67,210.18,209.91,18.66280174]
[1756478870088,18.66280174,210.19,209.92,136.94]
[1756478870287,32.98280174,210.19,209.91,18.66280174]
[1756478870493,14.32,210.18,209.91,18.66280174]
[1756478870689,18.66280174,210.14,209.91,18.66280174]
[1756478870891,7.67,210.12,209.86,18.66280174]
[1756478871291,7.67,210.08,209.86,155.42280174]
[1756478871491,18.66280174,210.09,209.84,320.12]
[1756478871691,7.67,210.07,209.84,320.12]
[1756478871891,32.98280174,210.09,209.84,320.12]
[1756478872294,7.67,210.03,209.81,18.66280174]
[1756478872701,18.66280174,209.99,209.77,180.78844744]
[1756478872899,7.67,209.98,209.77,317.42844744]
[1756478874394,7.67,209.98,209.77,180.78844744]
[1756478874897,7.67,209.98,209.78,136.42]
[1756478876995,7.67,209.98,209.79,136.44]
[1756478877399,7.67,209.98,209.77,180.78844744]
[1756478878104,7.67,209.97,209.78,136.14]
[1756478878405,7.67,209.93,209.77,180.78844744]
[1756478878700,18.66280174,209.94,209.77,180.78844744]
[1756478878901,136.04,209.93,209.77,180.78844744]
[1756478879099,7.67,209.88,209.7,136.02]
[1756478880200,7.67,210.0,209.74,18.66280174]
[1756478880603,18.66280174,210.0,209.75,15.02]
[1756478880901,7.67,209.99,209.76,24.98]
[1756478881102,7.67,209.99,209.83,18.66280174]
[1756478881308,7.67,210.06,209.84,31.62]
[1756478881707,7.67,210.06,209.89,18.66280174]
[1756478882206,7.67,210.06,209.89,65.02]
[1756478883903,7.67,210.06,209.8,320.14]
[1756478884108,18.66280174,210.02,209.8,320.14]
[1756478884604,7.67,210.01,209.8,320.14]
[1756478885103,18.66280174,210.02,209.8,320.14]
[1756478885310,18.66280174,209.97,209.74,136.96]
[1756478885504,7.67,209.95,209.74,136.92]
[1756478886409,7.67,209.95,209.74,18.66280174]
[1756478886599,18.66280174,209.95,209.69,18.66280174]
[1756478886799,7.6,209.94,209.7,136.86]
[1756478887806,7.6,210.02,209.84,18.66280174]
[1756478888011,7.6,210.02,209.85,11.38]
[1756478888713,7.6,210.09,209.89,18.66280174]
[1756478889607,7.6,210.09,209.9,137.38]
[1756478890609,7.6,210.09,209.89,18.66280174]
[1756478891013,7.6,210.09,209.89,137.08]
[1756478891410,7.6,210.09,209.9,29.68751212]
[1756478892208,7.6,210.09,209.91,137.06]
[1756478892409,7.6,210.09,209.9,29.68751212]
[1756478893009,7.6,210.09,209.91,136.94]
[1756478893210,7.6,210.09,209.9,29.68751212]
[1756478893409,7.6,210.09,209.91,136.88]
[1756478893609,7.6,210.13,209.85,29.68751212]
[1756478893810,7.6,210.13,209.86,136.82]
[1756478894110,7.6,210.13,209.85,29.68751212]
[1756478894311,14.56,210.14,209.85,29.68751212]
[1756478894505,7.6,210.13,209.86,136.74]
[1756478894814,14.56,210.14,209.86,136.74]
[1756478895007,7.6,210.13,209.86,136.74]
[1756478895203,7.6,210.1,209.83,320.14]
[1756478895407,7.6,210.1,209.86,136.66]
[1756478895808,41.68,210.09,209.86,166.34751212]
[1756478896109,7.6,210.09,209.86,166.34751212]
[1756478896304,7.6,210.09,209.86,33.62141708]
[1756478896509,7.6,210.09,209.87,136.54]
[1756478896704,7.6,210.11,209.86,29.68751212]
[1756478896908,5.02,210.12,209.87,136.5]
[1756478897115,5.02,210.12,209.86,29.68751212]
[1756478897417,5.02,210.12,209.87,136.5]
[1756478897618,7.6,210.11,209.87,136.5]
[1756478897817,5.02,210.12,209.88,136.36]
[1756478898014,7.6,210.18,209.88,136.36]
[1756478898315,7.6,210.18,210.0,29.68751212]
[1756478898513,0.82838406,210.25,210.01,91.32]
[1756478898714,0.82838406,210.25,210.03,3.93390496]
[1756478898917,7.6,210.29,210.04,3.93390496]
[1756478899413,8.42804897,210.29,210.04,33.62141708]
[1756478899617,8.42804897,210.29,210.04,29.68751212]
[1756478900012,44.83556109,210.29,210.05,87.14]
[1756478900316,30.51556109,210.29,210.05,87.14]
[1756478900918,7.6,210.28,210.05,87.14]
[1756478901114,7.6,210.27,210.04,60.88]
[1756478901317,7.6,210.26,210.04,60.88]
[1756478901618,7.6,210.26,210.05,3.93390496]
[1756478901810,30.51556109,210.29,210.04,29.68751212]
[1756478901811,44.83556109,210.29,210.04,29.68751212]
[1756478902014,44.83556109,210.29,210.05,137.42]
[1756478902217,7.6,210.28,210.05,137.42]
[1756478902514,44.83556109,210.29,210.05,137.42]
[1756478902712,14.32,210.26,210.05,137.42]
[1756478902915,14.32,210.26,210.02,137.34]
[1756478903113,7.6,210.24,210.02,137.34]
[1756478904016,7.6,210.24,210.0,3.93390496]
[1756478904215,7.6,210.24,209.98,320.06]
[1756478904216,29.68751212,210.27,209.98,457.26]
[1756478904416,14.32,210.22,209.98,320.06]
[1756478904714,14.32,210.2,209.98,320.06]
[1756478905414,7.6,210.18,209.98,320.06]
[1756478906121,7.6,210.16,209.94,140.97390496]
[1756478906511,7.6,210.16,209.94,137.04]
[1756478906716,132.86,210.16,209.94,140.97390496]
[1756478906917,7.6,210.16,209.94,140.97390496]
[1756478907320,5.13340319,210.31,210.0,29.68751212]
[1756478907523,7.6,210.25,210.02,3.93390496]
[1756478907821,7.6,210.25,210.04,3.93390496]
[1756478908025,7.6,210.25,210.03,3.93390496]
[1756478908225,7.6,210.25,210.04,122.12]
[1756478910628,7.6,210.25,210.06,29.68751212]
[1756478910924,21.92,210.23,209.92,3.93390496]
[1756478911223,14.32,210.17,209.91,183.62700548]
[1756478911420,7.6,210.15,209.94,18.56959104]
[1756478911725,7.6,210.15,209.94,22.503496]
[1756478911920,7.6,210.15,209.96,18.56959104]
[1756478912129,7.6,210.15,209.91,202.19659652]
[1756478912725,7.6,210.15,209.92,137.36]
[1756478913022,7.6,210.15,209.96,18.56959104]
[1756478913222,319.88,210.18,209.96,18.56959104]
[1756478913728,7.6,210.2,210.01,18.56959104]
[1756478914121,7.6,210.2,210.02,137.34]
[1756478914426,7.6,210.2,210.01,18.56959104]
[1756478914722,7.6,210.2,209.99,3.93390496]
[1756478914922,7.6,210.18,209.97,137.22]
[1756478915123,7.6,210.18,209.98,3.93390496]
[1756478915320,7.6,210.18,209.97,141.15390496]
[1756478915521,7.6,210.18,209.99,3.93390496]
[1756478915717,7.6,210.18,210.0,137.44]
[1756478916327,18.56959104,210.16,209.96,319.88]
[1756478916529,7.6,210.15,209.96,319.88]
[1756478917228,18.56959104,210.16,209.96,319.88]
[1756478917426,18.56959104,210.16,209.91,183.62700548]
[1756478917427,18.56959104,210.11,209.91,179.69310052]
[1756478917634,7.5,210.1,209.91,179.69310052]
[1756478919829,7.5,210.18,209.91,198.26269156]
[1756478920028,7.5,210.18,209.91,202.19659652]
[1756478920241,7.5,210.18,209.92,3.93390496]
[1756478920641,7.5,210.18,209.93,3.93390496]
[1756478920847,7.5,210.18,209.96,22.503496]
[1756478921036,7.5,210.18,209.97,140.99390496]
[1756478921237,7.5,210.23,210.01,18.56959104]
[1756478921437,7.5,210.23,210.01,22.503496]
[1756478921935,7.5,210.23,210.05,3.93390496]
[1756478922137,7.5,210.23,210.01,18.56959104]
[1756478922138,7.5,210.23,210.06,136.96]
[1756478922338,319.9,210.27,210.06,155.52959104]
[1756478923138,7.5,210.26,210.06,18.56959104]
[1756478923342,7.5,210.26,210.07,110.8]
[1756478923646,7.5,210.26,210.08,93.16]
[1756478924043,7.5,210.26,210.06,18.56959104]
[1756478924240,7.5,210.26,210.07,66.64]
[1756478924746,319.9,210.27,210.04,66.33390496]
[1756478924943,319.9,210.27,210.04,62.4]
[1756478925244,7.5,210.26,210.04,62.4]
[1756478925639,319.9,210.27,210.04,62.4]
[1756478926042,7.5,210.26,210.04,62.4]
[1756478926247,26.06959104,210.24,210.01,3.93390496]
[1756478926447,7.5,210.23,210.02,136.32]
[1756478926841,319.9,210.27,210.05,18.56959104]
[1756478927240,7.5,210.23,210.0,3.93390496]
[1756478927442,7.5,210.23,210.01,108.38]
[1756478927641,7.5,210.23,210.01,112.31390496]
[1756478928041,7.5,210.23,210.02,3.93390496]
[1756478928242,7.5,210.23,210.01,112.31390496]
[1756478928642,7.5,210.23,210.02,3.93390496]
[1756478928950,144.06,210.23,210.02,3.93390496]
[1756478929147,7.5,210.23,210.01,112.31390496]
[1756478929449,319.9,210.27,210.04,3.93390496]
[1756478929642,463.82,210.27,210.06,3.93390496]
[1756478929843,463.82,210.27,210.05,91.46]
[1756478930147,463.82,210.27,210.06,82.96]
[1756478930646,463.82,210.27,210.06,86.89390496]
[1756478931046,463.82,210.27,210.03,23.85727228]
[1756478931047,456.32,210.27,210.05,3.93390496]
[1756478931346,456.32,210.27,210.06,78.28]
[1756478931548,7.5,210.26,210.06,78.28]
[1756478931947,7.5,210.26,210.07,3.93390496]
[1756478932246,7.5,210.26,210.06,78.89390496]
[1756478932650,7.5,210.26,210.07,3.93390496]
[1756478932940,7.5,210.26,210.06,78.89390496]
[1756478933139,474.88959104,210.27,210.06,78.89390496]
[1756478933339,474.88959104,210.27,209.97,319.9]
[1756478933340,7.5,210.26,210.05,3.93390496]
[1756478933545,7.5,210.26,210.01,3.93390496]
[1756478933546,7.5,210.21,210.01,3.93390496]
[1756478933740,7.5,210.19,210.0,3.93390496]
[1756478933944,7.5,210.19,210.01,3.93390496]
[1756478934345,7.5,210.16,209.99,3.93390496]
[1756478934743,7.5,210.16,209.98,3.93390496]
[1756478935046,7.5,210.16,209.95,3.93390496]
[1756478935448,7.5,210.16,209.93,125.9]
[1756478935449,7.5,210.16,209.96,3.93390496]
[1756478935650,7.5,210.16,209.97,3.93390496]
[1756478935949,7.5,210.16,209.95,3.93390496]
[1756478936150,7.5,210.11,209.93,3.93390496]
[1756478936352,7.5,210.09,209.93,3.93390496]
[1756478937150,7.5,210.09,209.94,3.93390496]
[1756478937649,7.5,210.09,209.91,179.69310052]
[1756478937944,7.5,210.09,209.91,183.62700548]
[1756478938143,7.5,210.09,209.92,3.93390496]
[1756478938446,7.5,210.09,209.91,183.62700548]
[1756478938752,7.5,210.09,209.92,3.93390496]
[1756478938948,7.5,210.09,209.91,183.62700548]
[1756478939139,7.5,210.09,209.92,3.93390496]
[1756478939648,25.1,210.09,209.93,3.93390496]
[1756478939841,7.5,210.09,209.94,3.93390496]
[1756478940037,37.84,210.09,209.93,3.93390496]
[1756478940248,7.5,210.06,209.89,3.93390496]
[1756478940445,7.5,210.06,209.87,3.93390496]
[1756478940844,7.5,210.01,209.85,3.93390496]
[1756478941039,135.34,210.0,209.85,3.93390496]
[1756478941246,7.5,210.01,209.85,3.93390496]
[1756478941446,142.84,210.01,209.83,3.93390496]
[1756478942145,142.84,210.01,209.84,3.93390496]
[1756478942451,140.78,210.01,209.84,3.93390496]
[1756478942649,7.5,210.01,209.84,3.93390496]
[1756478942846,7.5,210.01,209.85,3.93390496]
[1756478943249,7.5,210.01,209.83,3.93390496]
[1756478943452,7.5,210.01,209.85,3.93390496]
[1756478945553,7.5,210.01,209.87,3.93390496]
[1756478945745,7.5,210.01,209.84,3.93390496]
[1756478946053,7.5,210.01,209.78,3.93390496]
[1756478946244,7.5,210.01,209.77,3.93390496]
[1756478946448,7.5,210.01,209.76,22.503496]
[1756478946646,7.08,210.01,209.76,22.503496]
[1756478947148,32.88959104,210.02,209.76,18.56959104]
[1756478947348,7.08,210.01,209.76,18.56959104]
[1756478947556,32.88959104,210.02,209.76,18.56959104]
[1756478947743,14.32,210.01,209.76,18.56959104]
[1756478948051,18.56959104,210.02,209.76,18.56959104]
[1756478948052,7.08,209.98,209.76,18.56959104]
[1756478948442,14.32,209.99,209.76,18.56959104]
[1756478948647,7.08,209.98,209.76,18.56959104]
[1756478948847,7.08,209.99,209.76,22.503496]
[1756478949048,14.32,210.0,209.76,18.56959104]
[1756478949252,7.08,209.98,209.76,18.56959104]
[1756478949853,14.32,209.99,209.76,18.56959104]
[1756478950043,7.08,209.98,209.76,18.56959104]
[1756478950445,7.08,209.96,209.76,18.56959104]
[1756478951355,42.32,209.97,209.76,18.56959104]
[1756478951556,7.08,209.96,209.71,22.503496]
[1756478951750,18.56959104,209.91,209.65,22.503496]
[1756478951945,320.08,209.96,209.65,22.503496]
[1756478951946,14.32,209.92,209.65,22.503496]
[1756478952253,14.32,209.89,209.64,17.8]
[1756478952455,18.56959104,209.85,209.6,22.503496]
[1756478952647,14.32,209.88,209.57,320.08]
[1756478952648,18.56959104,209.8,209.62,29.24]
[1756478952953,7.08,209.79,209.62,29.24]